Workbook

Sheet RECAPITULATIF ET SUIVI
B1: Récapitulatif | O1: PERIODE CONTRACTUELLE
O2: 2019-01-01 | R2: =+O2+31 -> 2019-02-01 | U2: =+R2+31 -> 2019-03-04 | X2: =+U2+31 -> 2019-04-04 | AA2: =+X2+31 -> 2019-05-05 | AD2: =+AA2+30 -> 2019-06-04 | AG2: =+AD2+31 -> 2019-07-05 | AJ2: =+AG2+31 -> 2019-08-05 | AM2: =+AJ2+31 -> 2019-09-05 | AP2: =+AM2+31 -> 2019-10-06 | AS2: =+AP2+31 -> 2019-11-06 | AV2: =+AS2+31 -> 2019-12-07 | AY2: =+AV2+31 -> 2020-01-07 | BB2: =+AY2+31 -> 2020-02-07 | BE2: =+BB2+31 -> 2020-03-09 | BH2: =+BE2+31 -> 2020-04-09 | BK2: =+BH2+31 -> 2020-05-10 | BN2: heures | BO2: sommes | BP2: heures | BQ2: sommes
A3: N°FEUILLE | B3: Civilité | C3: Noms | D3: Prénom | E3: Société | F3: Intitulé | G3: OPCA | H3: Code OPCA | I3: DISP | J3: numéro cps | K3: nbre heure base | L3: taux ventes | M3: total budget | N3: Reste nbre heure | O3: n°fact | P3: Nbre heures | Q3: sommes | R3: n°fact | S3: Nbre heures | T3: sommes | U3: n°fact | V3: Nbre heures | W3: sommes | X3: n°fact | Y3: Nbre heures | Z3: sommes | AA3: n°fact | AB3: Nbre heures | AC3: sommes | AD3: n°fact | AE3: Nbre heures | AF3: sommes | AG3: n°fact | AH3: Nbre heures | AI3: sommes | AJ3: n°fact | AK3: Nbre heures | AL3: sommes | AM3: n°fact | AN3: Nbre heures | AO3: sommes | AP3: n°fact | AQ3: Nbre heures | AR3: sommes | AS3: n°fact | AT3: Nbre heures | AU3: sommes | AV3: n°fact | AW3: Nbre heures | AX3: sommes | AY3: n°fact | AZ3: Nbre heures | BA3: sommes | BB3: n°fact | BC3: Nbre heures | BD3: sommes | BE3: n°fact | BF3: Nbre heures | BG3: sommes | BH3: n°fact | BI3: Nbre heures | BJ3: sommes | BK3: n°fact | BL3: Nbre heures | BM3: sommes | BN3: totales facturées | BO3: total facturé | BP3: totales restantes | BQ3: total restants à facturer
A4: APP1 | B4: Madame Monsieur | L4: =25*0.8 -> 20.00 € | M4: =K4*L4 -> 0 | N4: =BP4 -> -70.00 | Q4: =P4*L4 -> 0 | T4: =S4*L4 -> 0 | U4: 002 | V4: 70 | W4: =L4*V4 -> 1,400.00 € | Z4: =L4*Y4 -> 0 | AC4: =L4*AB4 -> 0 | AF4: =AE4*L4 -> 0 | AI4: =AH4*L4 -> 0 | AL4: =AK4*L4 -> 0 | AO4: =AN4*R4 -> 0 | AR4: =AQ4*U4 -> 0 | AU4: =AT4*X4 -> 0 | AX4: =AW4*AA4 -> 0 | BA4: =AZ4*L4 -> 0 | BD4: =BC4*L4 -> 0 | BG4: =BF4*L4 -> 0 | BJ4: =L4*BI4 -> 0 | BM4: =L4*BL4 -> 0 | BN4: =BL4+BI4+BF4+BC4+AZ4+AH4+AE4+AB4+Y4+V4+S4+P4+AK4+AN4+AQ4+AT4+AW4 -> 70.00 | BO4: =BN4*L4 -> 1,400.00 € | BP4: =K4-BN4 -> -70 | BQ4: =BP4*L4 -> -1,400.00 €
A5: APP2 | B5: Madame Monsieur | L5: 18.00 € | M5: =K5*L5 -> 0 | N5: =BP5 -> -70.00 | Q5: =P5*L5 -> 0 | R5: 001 | S5: 70 | T5: =S5*L5 -> 1,260.00 € | W5: =L5*V5 -> 0 | Z5: =L5*Y5 -> 0 | AC5: =L5*AB5 -> 0 | AF5: =AE5*L5 -> 0 | AI5: =AH5*L5 -> 0 | AL5: =AK5*L5 -> 0 | AO5: =AN5*R5 -> 0 | AR5: =AQ5*U5 -> 0 | AU5: =AT5*X5 -> 0 | AX5: =AW5*AA5 -> 0 | BA5: =AZ5*L5 -> 0 | BD5: =BC5*L5 -> 0 | BG5: =BF5*L5 -> 0 | BJ5: =L5*BI5 -> 0 | BM5: =L5*BL5 -> 0 | BN5: =BL5+BI5+BF5+BC5+AZ5+AH5+AE5+AB5+Y5+V5+S5+P5+AK5+AN5+AQ5+AT5+AW5 -> 70.00 | BO5: =BN5*L5 -> 1,260.00 € | BP5: =K5-BN5 -> -70 | BQ5: =BP5*L5 -> -1,260.00 €
A6: APP3 | M6: 0 | N6: 0.00 | Q6: 0 | T6: 0 | W6: 0 | Z6: 0 | AC6: 0 | AF6: 0 | AI6: 0 | AL6: 0 | AO6: 0 | AR6: 0 | AU6: 0 | AX6: 0 | BA6: 0 | BD6: 0 | BG6: 0 | BJ6: 0 | BM6: 0 | BN6: 0.00 | BO6: 0 | BP6: 0 | BQ6: 0
A7: APP4 | M7: 0 | N7: 0.00 | Q7: 0 | T7: 0 | W7: 0 | Z7: 0 | AC7: 0 | AF7: 0 | AI7: 0 | AL7: 0 | AO7: 0 | AR7: 0 | AU7: 0 | AX7: 0 | BA7: 0 | BD7: 0 | BG7: 0 | BJ7: 0 | BM7: 0 | BN7: 0.00 | BO7: 0 | BP7: 0 | BQ7: 0
A8: APP5 | M8: 0 | N8: 0.00 | Q8: 0 | T8: 0 | W8: 0 | Z8: 0 | AC8: 0 | AF8: 0 | AI8: 0 | AL8: 0 | AO8: 0 | AR8: 0 | AU8: 0 | AX8: 0 | BA8: 0 | BD8: 0 | BG8: 0 | BJ8: 0 | BM8: 0 | BN8: 0.00 | BO8: 0 | BP8: 0 | BQ8: 0
A9: APP6 | M9: 0 | N9: 0.00 | Q9: 0 | T9: 0 | W9: 0 | Z9: 0 | AC9: 0 | AF9: 0 | AI9: 0 | AL9: 0 | AO9: 0 | AR9: 0 | AU9: 0 | AX9: 0 | BA9: 0 | BD9: 0 | BG9: 0 | BJ9: 0 | BM9: 0 | BN9: 0.00 | BO9: 0 | BP9: 0 | BQ9: 0
A10: APP7 | M10: 0 | N10: 0.00 | Q10: 0 | T10: 0 | W10: 0 | Z10: 0 | AC10: 0 | AF10: 0 | AI10: 0 | AL10: 0 | AO10: 0 | AR10: 0 | AU10: 0 | AX10: 0 | BA10: 0 | BD10: 0 | BG10: 0 | BJ10: 0 | BM10: 0 | BN10: 0.00 | BO10: 0 | BP10: 0 | BQ10: 0
A11: APP8 | M11: 0 | N11: 0.00 | Q11: 0 | T11: 0 | W11: 0 | Z11: 0 | AC11: 0 | AF11: 0 | AI11: 0 | AL11: 0 | AO11: 0 | AR11: 0 | AU11: 0 | AX11: 0 | BA11: 0 | BD11: 0 | BG11: 0 | BJ11: 0 | BM11: 0 | BN11: 0.00 | BO11: 0 | BP11: 0 | BQ11: 0
A12: APP9 | M12: =K12*L12 -> 0 | N12: 0.00 | Q12: =P12*L12 -> 0 | T12: =S12*L12 -> 0 | W12: =L12*V12 -> 0 | Z12: =L12*Y12 -> 0 | AC12: =L12*AB12 -> 0 | AF12: =AE12*L12 -> 0 | AI12: =AH12*L12 -> 0 | AL12: 0 | AO12: =AN12*R12 -> 0 | AR12: =AQ12*U12 -> 0 | AU12: =AT12*X12 -> 0 | AX12: =AW12*AA12 -> 0 | BA12: =AZ12*L12 -> 0 | BD12: =BC12*L12 -> 0 | BG12: =BF12*L12 -> 0 | BJ12: =L12*BI12 -> 0 | BM12: =L12*BL12 -> 0 | BN12: 0.00 | BO12: =BN12*L12 -> 0 | BP12: =K12-BN12 -> 0 | BQ12: =BP12*L12 -> 0
A13: APP10 | M13: 0 | N13: 0.00 | Q13: 0 | T13: 0 | W13: 0 | Z13: 0 | AC13: 0 | AF13: 0 | AI13: 0 | AL13: 0 | AO13: 0 | AR13: 0 | AU13: 0 | AX13: 0 | BA13: =AZ13*L13 -> 0 | BD13: 0 | BG13: 0 | BJ13: 0 | BM13: 0 | BN13: 0.00 | BO13: 0 | BP13: 0 | BQ13: 0
K14: =SUM(K4:K13) -> 0 | M14: =SUM(M4:M13) -> 0 | N14: -140 | P14: 0 | Q14: 0 | S14: 70 | T14: 1,260.00 € | V14: 70 | W14: 1,400.00 € | Y14: 0 | Z14: 0 | AB14: 0 | AC14: 0 | AE14: 0 | AF14: 0 | AH14: 0 | AI14: 0 | AK14: =SUM(AK4:AK13) -> 0 | AL14: 0 | AN14: =SUM(AN4:AN13) -> 0 | AO14: 0 | AQ14: =SUM(AQ4:AQ13) -> 0 | AR14: 0 | AT14: =SUM(AT4:AT13) -> 0 | AU14: 0 | AW14: =SUM(AW4:AW13) -> 0 | AX14: 0 | AZ14: 0 | BA14: 0 | BC14: 0 | BD14: 0 | BF14: 0 | BG14: 0 | BI14: 0 | BJ14: 0 | BL14: 0 | BM14: 0 | BN14: 140 | BO14: 2,660.00 € | BP14: -140 | BQ14: -2,660.00 €
K15: BUDGET S-TRAIT | M15: =+N31 -> 0 | O15: SOUS-TRAITANT
K16: GAINS LJY | M16: =+M14-M15 -> 0 | P16: =O2 -> 2019-01-01 | Q16: =+Q31 -> 0 | S16: =R2 -> 2019-02-01 | T16: =+T31 -> 415.80 € | V16: =U2 -> 2019-03-04 | W16: =+W31 -> 1,400.00 € | Y16: =X2 -> 2019-04-04 | Z16: =+Z31 -> 0 | AB16: =AA2 -> 2019-05-05 | AC16: =+AC31 -> 0 | AE16: =AD2 -> 2019-06-04 | AF16: =+AF31 -> 0 | AH16: =AG2 -> 2019-07-05 | AI16: =+AI31 -> 0 | AK16: =AJ2 -> 2019-08-05 | AL16: =+AL31 -> 0 | AN16: =AM2 -> 2019-09-05 | AO16: =+AO31 -> 0 | AQ16: =AP2 -> 2019-10-06 | AR16: =+AR31 -> 0 | AT16: =AS2 -> 2019-11-06 | AU16: =+AU31 -> 0 | AW16: =AV2 -> 2019-12-07 | AX16: =+AX31 -> 0 | AZ16: =AY2 -> 2020-01-07 | BA16: =+BA31 -> 0 | BC16: =BB2 -> 2020-02-07 | BD16: =+BD31 -> 0 | BF16: =BE2 -> 2020-03-09 | BG16: =+BG31 -> 0 | BI16: =BH2 -> 2020-04-09 | BJ16: =+BJ31 -> 0 | BL16: =BK2 -> 2020-05-10 | BM16: =+BM31 -> 0 | BN16: Total période | BO16: =+BO31 -> 1,815.80 € | BP16: reste pour finir | BQ16: =+BQ31 -> -1,815.80 €
B18: SITUATION PREVISIONNELLE SUR L'ACTION | P18: =+P16 -> 2019-01-01 | Q18: =+Q14-Q16 -> 0 | S18: =+S16 -> 2019-02-01 | T18: =+T14-T16 -> 844.20 € | V18: =+V16 -> 2019-03-04 | W18: =+W14-W16 -> 0 | Y18: =+Y16 -> 2019-04-04 | Z18: =+Z14-Z16 -> 0 | AB18: =+AB16 -> 2019-05-05 | AC18: =+AC14-AC16 -> 0 | AE18: =+AE16 -> 2019-06-04 | AF18: =+AF14-AF16 -> 0 | AH18: =+AH16 -> 2019-07-05 | AI18: =+AI14-AI16 -> 0 | AK18: =+AK16 -> 2019-08-05 | AL18: =+AL14-AL16 -> 0 | AN18: =+AN16 -> 2019-09-05 | AO18: =+AO14-AO16 -> 0 | AQ18: =+AQ16 -> 2019-10-06 | AR18: =+AR14-AR16 -> 0 | AT18: =+AT16 -> 2019-11-06 | AU18: =+AU14-AU16 -> 0 | AW18: =+AW16 -> 2019-12-07 | AX18: =+AX14-AX16 -> 0 | AZ18: =+AZ16 -> 2020-01-07 | BA18: =+BA14-BA16 -> 0 | BC18: =+BC16 -> 2020-02-07 | BD18: =+BD14-BD16 -> 0 | BF18: =+BF16 -> 2020-03-09 | BG18: =+BG14-BG16 -> 0 | BI18: =+BI16 -> 2020-04-09 | BJ18: =+BJ14-BJ16 -> 0 | BL18: =+BL16 -> 2020-05-10 | BM18: =+BM14-BM16 -> 0 | BN18: Total période | BO18: =+BO14-BO16 -> 844.20 € | BP18: reste pour finir | BQ18: =+BQ14-BQ16 -> -844.20 €
O19: =O2 -> 2019-01-01 | R19: =R2 -> 2019-02-01 | U19: =U2 -> 2019-03-04 | X19: =X2 -> 2019-04-04 | AA19: =AA2 -> 2019-05-05 | AD19: =AD2 -> 2019-06-04 | AG19: =AG2 -> 2019-07-05 | AJ19: =AJ2 -> 2019-08-05 | AM19: =AM2 -> 2019-09-05 | AP19: =AP2 -> 2019-10-06 | AS19: =AS2 -> 2019-11-06 | AV19: =AV2 -> 2019-12-07 | AY19: =AY2 -> 2020-01-07 | BB19: =BB2 -> 2020-02-07 | BE19: =BE2 -> 2020-03-09 | BH19: =BH2 -> 2020-04-09 | BK19: =BK2 -> 2020-05-10 | BN19: heures | BO19: sommes | BP19: heures | BQ19: sommes
B20: STATUT | C20: DENOMINATION | D20: ADRESSE | E20: SIRET | F20: GERANT | G20: APPRENANTS | K20: TAUX | L20: COUT | M20: NBRE H | N20: Total budget STRAITANCE | O20: n°fact | P20: Nbre heures | Q20: sommes | R20: n°fact | S20: Nbre heures | T20: sommes | U20: n°fact | V20: Nbre heures | W20: sommes | X20: n°fact | Y20: Nbre heures | Z20: sommes | AA20: n°fact | AB20: Nbre heures | AC20: sommes | AD20: n°fact | AE20: Nbre heures | AF20: sommes | AG20: n°fact | AH20: Nbre heures | AI20: sommes | AJ20: n°fact | AK20: Nbre heures | AL20: sommes | AM20: n°fact | AN20: Nbre heures | AO20: sommes | AP20: n°fact | AQ20: Nbre heures | AR20: sommes | AS20: n°fact | AT20: Nbre heures | AU20: sommes | AV20: n°fact | AW20: Nbre heures | AX20: sommes | AY20: n°fact | AZ20: Nbre heures | BA20: sommes | BB20: n°fact | BC20: Nbre heures | BD20: sommes | BE20: n°fact | BF20: Nbre heures | BG20: sommes | BH20: n°fact | BI20: Nbre heures | BJ20: sommes | BK20: n°fact | BL20: Nbre heures | BM20: sommes | BN20: totales facturées | BO20: total facturé | BP20: totales restantes | BQ20: total restants à facturer
G21: =B4 -> Madame Monsieur | I21: =C4 -> 0 | J21: =D4 -> 0 | K21: 100% | L21: =+L4*K21 -> 20.00 € | M21: =+K4 -> 0 | N21: =L21*M21 -> 0 | O21: =+O4 -> 0 | P21: =+P4 -> 0 | Q21: =P21*L21 -> 0 | S21: =+S4 -> 0 | T21: =S21*L21 -> 0 | V21: =+V4 -> 70 | W21: =L21*V21 -> 1,400.00 € | Y21: =+Y4 -> 0 | Z21: =L21*Y21 -> 0 | AB21: =+AB4 -> 0 | AC21: =L21*AB21 -> 0 | AE21: =+AE4 -> 0 | AF21: =AE21*L21 -> 0 | AH21: =+AH4 -> 0 | AI21: =AH21*L21 -> 0 | AK21: =+AK4 -> 0 | AL21: =AK21*L21 -> 0 | AN21: =+AN4 -> 0 | AO21: =AN21*R21 -> 0 | AQ21: =+AQ4 -> 0 | AR21: =AQ21*U21 -> 0 | AT21: =+AT4 -> 0 | AU21: =AT21*X21 -> 0 | AW21: =+AW4 -> 0 | AX21: =AW21*AA21 -> 0 | AZ21: =+AZ4 -> 0 | BA21: =AZ21*L21 -> 0 | BC21: =+BC4 -> 0 | BD21: =BC21*L21 -> 0 | BF21: =+BF4 -> 0 | BG21: =BF21*L21 -> 0 | BI21: =+BI4 -> 0 | BJ21: =L21*BI21 -> 0 | BL21: =+BL4 -> 0 | BM21: =L21*BL21 -> 0 | BN21: =BL21+BI21+BF21+BC21+AZ21+AH21+AE21+AB21+Y21+V21+S21+P21+AK21+AN21+AQ21+AT21+AW21 -> 70.00 | BO21: =BN21*L21 -> 1,400.00 € | BP21: =M21-BN21 -> -70.00 | BQ21: =BP21*L21 -> -1,400.00 €
G22: Madame Monsieur | I22: 0 | J22: 0 | K22: 33% | L22: =+L5*K22 -> 5.94 € | M22: =+K5 -> 0 | N22: =L22*M22 -> 0 | O22: =+O5 -> 0 | P22: 0 | Q22: =P22*L22 -> 0 | S22: =+S5 -> 70 | T22: =S22*L22 -> 415.80 € | V22: =+V5 -> 0 | W22: =L22*V22 -> 0 | Y22: =+Y5 -> 0 | Z22: =L22*Y22 -> 0 | AB22: =+AB5 -> 0 | AC22: =L22*AB22 -> 0 | AE22: =+AE5 -> 0 | AF22: =AE22*L22 -> 0 | AH22: =+AH5 -> 0 | AI22: =AH22*L22 -> 0 | AK22: =+AK5 -> 0 | AL22: =AK22*L22 -> 0 | AN22: =+AN5 -> 0 | AO22: =AN22*R22 -> 0 | AQ22: =+AQ5 -> 0 | AR22: =AQ22*U22 -> 0 | AT22: =+AT5 -> 0 | AU22: =AT22*X22 -> 0 | AW22: =+AW5 -> 0 | AX22: =AW22*AA22 -> 0 | AZ22: =+AZ5 -> 0 | BA22: =AZ22*L22 -> 0 | BC22: =+BC5 -> 0 | BD22: =BC22*L22 -> 0 | BF22: =+BF5 -> 0 | BG22: =BF22*L22 -> 0 | BI22: =+BI5 -> 0 | BJ22: =L22*BI22 -> 0 | BL22: =+BL5 -> 0 | BM22: =L22*BL22 -> 0 | BN22: =BL22+BI22+BF22+BC22+AZ22+AH22+AE22+AB22+Y22+V22+S22+P22+AK22+AN22+AQ22+AT22+AW22 -> 70.00 | BO22: =BN22*L22 -> 415.80 € | BP22: =M22-BN22 -> -70.00 | BQ22: =BP22*L22 -> -415.80 €
G23: 0 | I23: 0 | J23: 0 | K23: 90% | L23: =+L6*K23 -> 0 | M23: 0 | N23: 0 | O23: =+O6 -> 0 | P23: 0 | Q23: 0 | S23: =+S6 -> 0 | T23: 0 | V23: =+V6 -> 0 | W23: 0 | Y23: =+Y6 -> 0 | Z23: 0 | AB23: =+AB6 -> 0 | AC23: 0 | AE23: =+AE6 -> 0 | AF23: 0 | AH23: =+AH6 -> 0 | AI23: 0 | AK23: =+AK6 -> 0 | AL23: 0 | AN23: =+AN6 -> 0 | AO23: 0 | AQ23: =+AQ6 -> 0 | AR23: 0 | AT23: =+AT6 -> 0 | AU23: 0 | AW23: =+AW6 -> 0 | AX23: 0 | AZ23: =+AZ6 -> 0 | BA23: 0 | BC23: =+BC6 -> 0 | BD23: 0 | BF23: =+BF6 -> 0 | BG23: 0 | BI23: =+BI6 -> 0 | BJ23: 0 | BL23: =+BL6 -> 0 | BM23: 0 | BN23: 0.00 | BO23: 0 | BP23: 0.00 | BQ23: 0
G24: 0 | I24: 0 | J24: 0 | K24: 10% | L24: 0 | M24: 0 | N24: 0 | O24: =+O7 -> 0 | P24: 0 | Q24: 0 | S24: =+S7 -> 0 | T24: 0 | V24: =+V7 -> 0 | W24: 0 | Y24: =+Y7 -> 0 | Z24: 0 | AB24: =+AB7 -> 0 | AC24: 0 | AE24: =+AE7 -> 0 | AF24: 0 | AH24: =+AH7 -> 0 | AI24: 0 | AK24: =+AK7 -> 0 | AL24: 0 | AN24: =+AN7 -> 0 | AO24: 0 | AQ24: =+AQ7 -> 0 | AR24: 0 | AT24: =+AT7 -> 0 | AU24: 0 | AW24: =+AW7 -> 0 | AX24: 0 | AZ24: =+AZ7 -> 0 | BA24: 0 | BC24: =+BC7 -> 0 | BD24: 0 | BF24: =+BF7 -> 0 | BG24: 0 | BI24: =+BI7 -> 0 | BJ24: 0 | BL24: =+BL7 -> 0 | BM24: 0 | BN24: 0.00 | BO24: 0 | BP24: 0.00 | BQ24: 0
G25: 0 | I25: 0 | J25: 0 | K25: 90% | L25: 0 | M25: 0 | N25: 0 | O25: =+O8 -> 0 | P25: 0 | Q25: 0 | S25: =+S8 -> 0 | T25: 0 | V25: =+V8 -> 0 | W25: 0 | Y25: =+Y8 -> 0 | Z25: 0 | AB25: =+AB8 -> 0 | AC25: 0 | AE25: =+AE8 -> 0 | AF25: 0 | AH25: =+AH8 -> 0 | AI25: 0 | AK25: =+AK8 -> 0 | AL25: 0 | AN25: =+AN8 -> 0 | AO25: 0 | AQ25: =+AQ8 -> 0 | AR25: 0 | AT25: =+AT8 -> 0 | AU25: 0 | AW25: =+AW8 -> 0 | AX25: 0 | AZ25: =+AZ8 -> 0 | BA25: 0 | BC25: =+BC8 -> 0 | BD25: 0 | BF25: =+BF8 -> 0 | BG25: 0 | BI25: =+BI8 -> 0 | BJ25: 0 | BL25: =+BL8 -> 0 | BM25: 0 | BN25: 0.00 | BO25: 0 | BP25: 0.00 | BQ25: 0
G26: 0 | I26: 0 | J26: 0 | K26: 90% | L26: 0 | M26: 0 | N26: 0 | O26: =+O9 -> 0 | P26: 0 | Q26: 0 | S26: =+S9 -> 0 | T26: 0 | V26: =+V9 -> 0 | W26: 0 | Y26: =+Y9 -> 0 | Z26: 0 | AB26: =+AB9 -> 0 | AC26: 0 | AE26: =+AE9 -> 0 | AF26: 0 | AH26: =+AH9 -> 0 | AI26: 0 | AK26: =+AK9 -> 0 | AL26: 0 | AN26: =+AN9 -> 0 | AO26: 0 | AQ26: =+AQ9 -> 0 | AR26: 0 | AT26: =+AT9 -> 0 | AU26: 0 | AW26: =+AW9 -> 0 | AX26: 0 | AZ26: =+AZ9 -> 0 | BA26: 0 | BC26: =+BC9 -> 0 | BD26: 0 | BF26: =+BF9 -> 0 | BG26: 0 | BI26: =+BI9 -> 0 | BJ26: 0 | BL26: =+BL9 -> 0 | BM26: 0 | BN26: 0.00 | BO26: 0 | BP26: 0.00 | BQ26: 0
G27: 0 | I27: 0 | J27: 0 | K27: 80% | L27: 0 | M27: 0 | N27: 0 | O27: =+O10 -> 0 | P27: 0 | Q27: 0 | S27: =+S10 -> 0 | T27: 0 | V27: =+V10 -> 0 | W27: 0 | Y27: =+Y10 -> 0 | Z27: 0 | AB27: =+AB10 -> 0 | AC27: 0 | AE27: =+AE10 -> 0 | AF27: 0 | AH27: =+AH10 -> 0 | AI27: 0 | AK27: =+AK10 -> 0 | AL27: 0 | AN27: =+AN10 -> 0 | AO27: 0 | AQ27: =+AQ10 -> 0 | AR27: 0 | AT27: =+AT10 -> 0 | AU27: 0 | AW27: =+AW10 -> 0 | AX27: 0 | AZ27: =+AZ10 -> 0 | BA27: 0 | BC27: =+BC10 -> 0 | BD27: 0 | BF27: =+BF10 -> 0 | BG27: 0 | BI27: =+BI10 -> 0 | BJ27: 0 | BL27: =+BL10 -> 0 | BM27: 0 | BN27: 0.00 | BO27: 0 | BP27: 0.00 | BQ27: 0
G28: 0 | I28: 0 | J28: 0 | K28: 80% | L28: 0 | M28: 0 | N28: 0 | O28: =+O11 -> 0 | P28: 0 | Q28: 0 | S28: =+S11 -> 0 | T28: 0 | V28: =+V11 -> 0 | W28: 0 | Y28: =+Y11 -> 0 | Z28: 0 | AB28: =+AB11 -> 0 | AC28: 0 | AE28: =+AE11 -> 0 | AF28: 0 | AH28: =+AH11 -> 0 | AI28: 0 | AK28: =+AK11 -> 0 | AL28: 0 | AN28: =+AN11 -> 0 | AO28: 0 | AQ28: =+AQ11 -> 0 | AR28: 0 | AT28: =+AT11 -> 0 | AU28: 0 | AW28: =+AW11 -> 0 | AX28: 0 | AZ28: =+AZ11 -> 0 | BA28: 0 | BC28: =+BC11 -> 0 | BD28: 0 | BF28: =+BF11 -> 0 | BG28: 0 | BI28: =+BI11 -> 0 | BJ28: 0 | BL28: =+BL11 -> 0 | BM28: 0 | BN28: 0.00 | BO28: 0 | BP28: 0.00 | BQ28: 0
G29: 0 | I29: 0 | J29: 0 | K29: 80% | L29: 0 | M29: 0 | N29: 0 | O29: =+O12 -> 0 | P29: 0 | Q29: 0 | S29: =+S12 -> 0 | T29: 0 | V29: =+V12 -> 0 | W29: 0 | Y29: =+Y12 -> 0 | Z29: 0 | AB29: =+AB12 -> 0 | AC29: 0 | AE29: =+AE12 -> 0 | AF29: 0 | AH29: =+AH12 -> 0 | AI29: 0 | AK29: =+AK12 -> 0 | AL29: 0 | AN29: =+AN12 -> 0 | AO29: 0 | AQ29: =+AQ12 -> 0 | AR29: 0 | AT29: =+AT12 -> 0 | AU29: 0 | AW29: =+AW12 -> 0 | AX29: 0 | AZ29: =+AZ12 -> 0 | BA29: =AZ29*L29 -> 0 | BC29: =+BC12 -> 0 | BD29: 0 | BF29: =+BF12 -> 0 | BG29: 0 | BI29: =+BI12 -> 0 | BJ29: 0 | BL29: =+BL12 -> 0 | BM29: 0 | BN29: 0.00 | BO29: 0 | BP29: 0.00 | BQ29: 0
G30: 0 | I30: 0 | J30: 0 | K30: 80% | L30: 0 | M30: 0 | N30: 0 | O30: =+O13 -> 0 | P30: 0 | Q30: 0 | S30: =+S13 -> 0 | T30: 0 | V30: =+V13 -> 0 | W30: 0 | Y30: =+Y13 -> 0 | Z30: 0 | AB30: =+AB13 -> 0 | AC30: 0 | AE30: =+AE13 -> 0 | AF30: 0 | AH30: =+AH13 -> 0 | AI30: 0 | AK30: =+AK13 -> 0 | AL30: 0 | AN30: =+AN13 -> 0 | AO30: 0 | AQ30: =+AQ13 -> 0 | AR30: 0 | AT30: =+AT13 -> 0 | AU30: 0 | AW30: =+AW13 -> 0 | AX30: 0 | AZ30: =+AZ13 -> 0 | BA30: =AZ30*L30 -> 0 | BC30: =+BC13 -> 0 | BD30: 0 | BF30: =+BF13 -> 0 | BG30: 0 | BI30: =+BI13 -> 0 | BJ30: 0 | BL30: =+BL13 -> 0 | BM30: 0 | BN30: 0.00 | BO30: 0 | BP30: 0.00 | BQ30: 0
N31: =SUM(N21:N30) -> 0 | P31: =SUM(P21:P30) -> 0 | Q31: =SUM(Q21:Q30) -> 0 | S31: =SUM(S21:S30) -> 70 | T31: 415.80 € | V31: =SUM(V21:V30) -> 70 | W31: 1,400.00 € | Y31: =SUM(Y21:Y30) -> 0 | Z31: 0 | AB31: =SUM(AB21:AB30) -> 0 | AC31: 0 | AE31: =SUM(AE21:AE30) -> 0 | AF31: 0 | AH31: =SUM(AH21:AH30) -> 0 | AI31: 0 | AK31: =SUM(AK21:AK30) -> 0 | AL31: 0 | AN31: =SUM(AN21:AN30) -> 0 | AO31: 0 | AQ31: =SUM(AQ21:AQ30) -> 0 | AR31: 0 | AT31: =SUM(AT21:AT30) -> 0 | AU31: 0 | AW31: =SUM(AW21:AW30) -> 0 | AX31: 0 | AZ31: =SUM(AZ21:AZ30) -> 0 | BA31: 0 | BC31: =SUM(BC21:BC30) -> 0 | BD31: 0 | BF31: =SUM(BF21:BF30) -> 0 | BG31: 0 | BI31: =SUM(BI21:BI30) -> 0 | BJ31: 0 | BL31: =SUM(BL21:BL30) -> 0 | BM31: 0 | BN31: 140 | BO31: 1,815.80 € | BP31: -140 | BQ31: -1,815.80 €

Sheet APP1
AB1: =A1:AC51 -> 0
A4: 2, rue des Jasses
A5: 34290 Montblanc
A6: Tél : 06 43 85 73 88
A7: Email : tremplinocc.contact@gmail.com
A8: SIRET 848 179 883 00014 / APE 8559B
A9: N°déclaration d'activité: 76 34101690 34
A11: Référence O.F. OPCA:
P12: =+'RECAPITULATIF ET SUIVI'!G4 -> 0
A16: Facture
A18: Numéro | I18: Date | N18: Code client | P18: Date échéance | Q18: Mode de règlement
A19: A19-007 | I19: 2019-04-01 | N19: =+'RECAPITULATIF ET SUIVI'!H4 -> 0 | P19: Réception | Q19: VIREMENT
A21: Description | U21: Qté H. | W21: P.U. HT | Z21: Montant HT
A22: =+'RECAPITULATIF ET SUIVI'!F4 -> 0
A24: Contrat Prestations | M24: =+'RECAPITULATIF ET SUIVI'!J4 -> 0
A25: Pour le compte de | J25: =+'RECAPITULATIF ET SUIVI'!E4 -> 0
A26: ='RECAPITULATIF ET SUIVI'!B4 -> Madame Monsieur | I26: =+'RECAPITULATIF ET SUIVI'!C4 -> 0 | N26: =+'RECAPITULATIF ET SUIVI'!D4 -> 0
A28: Période du | I28: 1/04/2019 | N28: au | O28: =I28+4 -> 2019-04-05 | U28: 70.00 | W28: ='RECAPITULATIF ET SUIVI'!L4 -> 20.00 | Z28: =+W28*U28 -> 1,400.00
B45: EXONERATION DE TVA ART L9204 DU CODE DU TRAVAIL
A48: Taux | F48: Base HT | J48: Montant TVA | S48: Total HT | Y48: =SUM(Z22:AC44) -> 1,400.00 €
A49: 0% | F49: =SUM(Z22:AC43) -> 1,400.00 € | J49: 0 | S49: Montant HT | Y49: =Y48 -> 1,400.00 €
S50: TVA | Y50: 0%
S51: NET A PAYER | Y51: =Y49 -> 1,400.00 €
C56: =+'RECAPITULATIF ET SUIVI'!D21 -> 0
C58: Tél : 0643 85 73 88
C61: SIRET: | F61: =+'RECAPITULATIF ET SUIVI'!E21 -> 0 | L61: APE 7010 Z
P66: TREMPLIN. OC 2 rue des Jasses 34 290 MONTBLANC
A70: Facture
A72: Numéro | I72: Date | N72: Code client | P72: Date échéance | Q72: Mode de règlement
A73: A19-019 | I73: =+I19 -> 2019-04-01 | N73: CLT-005-Toc | P73: Réception | Q73: CHEQUE/VIREMENT
A74: NOM : IBAN: BIC: DOMICILIATION:
A75: Description | U75: Qté H. | W75: P.U. HT | Z75: Montant HT
A76: =A22 -> 0
A78: Contrat Prestations | M78: =M24 -> 0
A79: Pour le compte de | J79: =J25 -> 0
A80: =A26 -> Madame Monsieur | I80: =I26 -> 0 | N80: =N26 -> 0
A82: Période du | I82: =I28 -> 1/04/2019 | N82: au | O82: =O28 -> 2019-04-05 | U82: =U28 -> 70.00 | W82: ='RECAPITULATIF ET SUIVI'!L21 -> 20.00 | Z82: =+W82*U82 -> 1,400.00
B99: TVA NON APPLICABLE ART L 293 B du CGI
A102: Taux | F102: Base HT | J102: Montant TVA | S102: Total HT | Y102: =SUM(Z76:AC98) -> 1,400.00 €
A103: 0% | F103: =SUM(Z76:AC97) -> 1,400.00 € | J103: 0 | S103: Montant HT | Y103: =Y102 -> 1,400.00 €
S104: TVA | Y104: 0%
S105: NET A PAYER | Y105: =Y103 -> 1,400.00 €
A106: "Acceptant le règlement des sommes dues par chèques libellés à son nom et par carte bancaire en sa qualité de membre d'un centre de gestion agréé par l'administration fiscale"
C109: PROGICIEL CHARLES
C110: =+C56 -> 0
C112: Tel: 0768 99 59 46
C114: Email: progicielcharles@gmail.com
C115: =+C61 -> SIRET: | F115: =+F61 -> 0 | M115: =+L61 -> APE 7010 Z
P118: =P66 -> TREMPLIN. OC 2 rue des Jasses 34 290 MONTBLANC
P119: =P67 -> 0
A124: Facture
A126: Numéro | I126: Date | N126: Code client | P126: Date échéance | Q126: Mode de règlement
A127: =+A73 -> A19-019 | I127: =+I73 -> 2019-04-01 | N127: =+N73 -> CLT-005-Toc | P127: Réception | Q127: CHEQUE/VIREMENT
A128: PROGICIEL CHARLES IBAN: FR24 2004 1010 2103 5712 3V01 840 BIC: PSSTFRPPSDR DOMICILIATION: BANQUE POSTALE- CENTRE FINANCIER 97499 SAINT DENIS CEDEX 9
A129: Description | U129: Qté H. | W129: P.U. HT | Z129: Montant HT
A130: =A76 -> 0
A132: Contrat Prestations | M132: =M78 -> 0
A133: Pour le compte de | J133: =J79 -> 0
A134: =A80 -> Madame Monsieur | I134: =I80 -> 0 | N134: =N80 -> 0
A136: Période du | I136: =I82 -> 1/04/2019 | N136: au | O136: =O82 -> 2019-04-05 | U136: =U82 -> 70.00 | W136: =+W82 -> 20.00 | Z136: =+W136*U136 -> 1,400.00
B153: TVA non applicable, article 293 B du Code général des impôts
A156: Taux | F156: Base HT | J156: Montant TVA | S156: Total HT | Y156: =SUM(Z130:AC152) -> 1,400.00 €
A157: 0% | F157: =SUM(Z130:AC151) -> 1,400.00 € | J157: 0 | S157: Montant HT | Y157: =Y156 -> 1,400.00 €
S158: TVA | Y158: 0%
S159: NET A PAYER | Y159: =Y157 -> 1,400.00 €
A160: "Acceptant le règlement des sommes dues par chèques libellés à son nom et par carte bancaire en sa qualité de membre d'un centre de gestion agréé par l'administration fiscale"

Sheet APP2
AB1: =A1:AC51 -> 0
A4: 2, rue des Jasses
A5: 34290 Montblanc
A6: Tél : 06 43 85 73 88
A7: Email : tremplinocc.contact@gmail.com
A8: SIRET 848 179 883 00014 / APE 8559B
A9: N°déclaration d'activité: 76 34101690 34
A11: Référence O.F. OPCA:
P12: ='RECAPITULATIF ET SUIVI'!G5 -> 0
A16: Facture
A18: Numéro | I18: Date | N18: Code client | P18: Date échéance | Q18: Mode de règlement
A19: A19-008 | I19: =+'APP1'!I19:M19 -> 2019-04-01 | N19: =+'RECAPITULATIF ET SUIVI'!H5 -> 0 | P19: Réception | Q19: VIREMENT
A21: Description | U21: Qté H. | W21: P.U. HT | Z21: Montant HT
A22: =+'RECAPITULATIF ET SUIVI'!F5 -> 0
A24: Contrat Prestations | M24: ='RECAPITULATIF ET SUIVI'!J5 -> 0
A25: Pour le compte de | J25: ='RECAPITULATIF ET SUIVI'!E4 -> 0
A26: ='RECAPITULATIF ET SUIVI'!B5 -> Madame Monsieur | I26: ='RECAPITULATIF ET SUIVI'!C5 -> 0 | N26: ='RECAPITULATIF ET SUIVI'!D5 -> 0
A28: Période du | I28: ='APP1'!I28:M28 -> 1/04/2019 | N28: au | O28: ='APP1'!O28:P28 -> 2019-04-05 | U28: 70.00 | W28: ='RECAPITULATIF ET SUIVI'!L5 -> 18.00 | Z28: =+W28*U28 -> 1,260.00
B45: EXONERATION DE TVA ART L9204 DU CODE DU TRAVAIL
A48: Taux | F48: Base HT | J48: Montant TVA | S48: Total HT | Y48: =SUM(Z22:AC44) -> 1,260.00 €
A49: 0% | F49: =SUM(Z22:AC43) -> 1,260.00 € | J49: 0 | S49: Montant HT | Y49: =Y48 -> 1,260.00 €
S50: TVA | Y50: 0%
S51: NET A PAYER | Y51: =Y49 -> 1,260.00 €
C55: ='APP1'!C55:Q55 -> 0
C56: =+'RECAPITULATIF ET SUIVI'!D21 -> 0
C58: Tél : 0643 85 73 88
C60: ='APP1'!C60:Q60 -> 0
C61: SIRET: | F61: =+'RECAPITULATIF ET SUIVI'!E21 -> 0 | L61: APE 7010 Z
P66: =A7 -> Email : tremplinocc.contact@gmail.com
P67: =A9 -> N°déclaration d'activité: 76 34101690 34
A70: Facture
A72: Numéro | I72: Date | N72: Code client | P72: Date échéance | Q72: Mode de règlement
A73: A19-020 | I73: =+I19 -> 2019-04-01 | N73: =+'APP1'!N73:O73 -> CLT-005-Toc | P73: Réception | Q73: CHEQUE/VIREMENT
A74: ='APP1'!A74:AB74 -> NOM : IBAN: BIC: DOMICILIATION:
A75: Description | U75: Qté H. | W75: P.U. HT | Z75: Montant HT
A76: =A22 -> 0
A78: Contrat Prestations | M78: =M24 -> 0
A79: Pour le compte de | J79: =J25 -> 0
A80: =A26 -> Madame Monsieur | I80: =I26 -> 0 | N80: =N26 -> 0
A82: Période du | I82: =I28 -> 1/04/2019 | N82: au | O82: =O28 -> 2019-04-05 | U82: =+U28 -> 70.00 | W82: ='RECAPITULATIF ET SUIVI'!L22 -> 5.94 | Z82: =+W82*U82 -> 415.80
B99: TVA NON APPLICABLE ART L 293 B du CGI
A102: Taux | F102: Base HT | J102: Montant TVA | S102: Total HT | Y102: =SUM(Z76:AC98) -> 415.80 €
A103: 0% | F103: =SUM(Z76:AC97) -> 415.80 € | J103: 0 | S103: Montant HT | Y103: =Y102 -> 415.80 €
S104: TVA | Y104: 0%
S105: NET A PAYER | Y105: =Y103 -> 415.80 €
A106: "Acceptant le règlement des sommes dues par chèques libellés à son nom et par carte bancaire en sa qualité de membre d'un centre de gestion agréé par l'administration fiscale"
C110: =+C56 -> 0
C112: Tel: 0768 99 59 46
C115: =+C61 -> SIRET: | F115: =+F61 -> 0 | M115: =+L61 -> APE 7010 Z
P118: =P66 -> Email : tremplinocc.contact@gmail.com
P119: =P67 -> N°déclaration d'activité: 76 34101690 34
A124: Facture
A126: Numéro | I126: Date | N126: Code client | P126: Date échéance | Q126: Mode de règlement
A127: =+A73 -> A19-020 | I127: =+I73 -> 2019-04-01 | N127: =+N73 -> CLT-005-Toc | P127: Réception | Q127: CHEQUE/VIREMENT
A128: NOM: IBAN: BIC: DOMICILIATION:
A129: Description | U129: Qté H. | W129: P.U. HT | Z129: Montant HT
A130: =A76 -> 0
A132: Contrat Prestations | M132: =M78 -> 0
A133: Pour le compte de | J133: =J79 -> 0
A134: =A80 -> Madame Monsieur | I134: =I80 -> 0 | N134: =N80 -> 0
A136: Période du | I136: =I82 -> 1/04/2019 | N136: au | O136: =O82 -> 2019-04-05 | U136: =U82 -> 70.00 | W136: =+W82 -> 5.94 | Z136: =+W136*U136 -> 415.80
B153: TVA NON APPLICABLE ART L 293 B du CGI
A156: Taux | F156: Base HT | J156: Montant TVA | S156: Total HT | Y156: =SUM(Z130:AC152) -> 415.80 €
A157: 0% | F157: =SUM(Z130:AC151) -> 415.80 € | J157: 0 | S157: Montant HT | Y157: =Y156 -> 415.80 €
S158: TVA | Y158: 0%
S159: NET A PAYER | Y159: =Y157 -> 415.80 €
A160: "Acceptant le règlement des sommes dues par chèques libellés à son nom et par carte bancaire en sa qualité de membre d'un centre de gestion agréé par l'administration fiscale"

Sheet APP3
AB1: =A1:AC51 -> 0
A4: 2, rue des Jasses
A5: 34290 Montblanc
A6: Tél : 06 43 85 73 88
A7: Email : tremplinocc.contact@gmail.com
A8: SIRET 848 179 883 00014 / APE 8559A
A9: N°déclaration d'activité: 76 34101690 34
A11: Référence O.F. OPCA:
P12: =+'RECAPITULATIF ET SUIVI'!G6 -> 0
A16: Facture
A18: Numéro | I18: Date | N18: Code client | P18: Date échéance | Q18: Mode de règlement
I19: =+'APP1'!I19:M19 -> 2019-04-01 | N19: =+'RECAPITULATIF ET SUIVI'!H6 -> 0 | P19: Réception | Q19: VIREMENT
A21: Description | U21: Qté H. | W21: P.U. HT | Z21: Montant HT
A22: =+'RECAPITULATIF ET SUIVI'!F6 -> 0
A24: Contrat Prestations | M24: =+'RECAPITULATIF ET SUIVI'!J6 -> 0
A25: Pour le compte de | J25: =+'RECAPITULATIF ET SUIVI'!E6 -> 0
A26: =+'RECAPITULATIF ET SUIVI'!B6 -> 0 | I26: =+'RECAPITULATIF ET SUIVI'!C6 -> 0 | N26: =+'RECAPITULATIF ET SUIVI'!D6 -> 0
A28: Période du | I28: ='APP1'!I28:M28 -> 1/04/2019 | N28: au | O28: ='APP1'!O28:P28 -> 2019-04-05 | W28: =+'RECAPITULATIF ET SUIVI'!L6 -> 0.00 | Z28: =+W28*U28 -> 0.00
B45: EXONERATION DE TVA ART L9204 DU CODE DU TRAVAIL
A48: Taux | F48: Base HT | J48: Montant TVA | S48: Total HT | Y48: =SUM(Z22:AC44) -> 0
A49: 0% | F49: =SUM(Z22:AC43) -> 0.00 € | J49: 0 | S49: Montant HT | Y49: =Y48 -> 0
S50: TVA | Y50: 0%
S51: NET A PAYER | Y51: =Y49 -> 0
C56: =+'RECAPITULATIF ET SUIVI'!D21 -> 0
C58: Tél : 0643 85 73 88
C61: SIRET: | F61: =+'RECAPITULATIF ET SUIVI'!E21 -> 0 | L61: APE 7010 Z
P66: =A7 -> Email : tremplinocc.contact@gmail.com
P67: =A9 -> N°déclaration d'activité: 76 34101690 34
A70: Facture
A72: Numéro | I72: Date | N72: Code client | P72: Date échéance | Q72: Mode de règlement
I73: =+I19 -> 2019-04-01 | N73: =+'APP2'!N73:O73 -> CLT-005-Toc | P73: Réception | Q73: CHEQUE/VIREMENT
A74: nom: IBAN: BIC: DOMICILIATION:
A75: Description | U75: Qté H. | W75: P.U. HT | Z75: Montant HT
A76: =A22 -> 0
A78: Contrat Prestations | M78: =M24 -> 0
A79: Pour le compte de | J79: =J25 -> 0
A80: =A26 -> 0 | I80: =I26 -> 0 | N80: =N26 -> 0
A82: Période du | I82: =I28 -> 1/04/2019 | N82: au | O82: =O28 -> 2019-04-05 | U82: =U28 -> 0.00 | W82: ='RECAPITULATIF ET SUIVI'!L23 -> 0.00 | Z82: =+W82*U82 -> 0.00
B99: TVA NON APPLICABLE ART L 293 B du CGI
A102: Taux | F102: Base HT | J102: Montant TVA | S102: Total HT | Y102: =SUM(Z76:AC98) -> 0
A103: 0% | F103: =SUM(Z76:AC97) -> 0.00 € | J103: 0 | S103: Montant HT | Y103: =Y102 -> 0
S104: TVA | Y104: 0%
S105: NET A PAYER | Y105: =Y103 -> 0
A106: "Acceptant le règlement des sommes dues par chèques libellés à son nom et par carte bancaire en sa qualité de membre d'un centre de gestion agréé par l'administration fiscale"
C110: =+C56 -> 0
C112: Tel: 0768 99 59 46
C115: =+C61 -> SIRET: | F115: =+F61 -> 0 | M115: =+L61 -> APE 7010 Z
P118: =P66 -> Email : tremplinocc.contact@gmail.com
P119: =P67 -> N°déclaration d'activité: 76 34101690 34
A124: Facture
A126: Numéro | I126: Date | N126: Code client | P126: Date échéance | Q126: Mode de règlement
A127: =+A73 -> 0 | I127: =+I73 -> 2019-04-01 | N127: =+N73 -> CLT-005-Toc | P127: Réception | Q127: CHEQUE/VIREMENT
A128: nom IBAN: BIC: DOMICILIATION:
A129: Description | U129: Qté H. | W129: P.U. HT | Z129: Montant HT
A130: =A76 -> 0
A132: Contrat Prestations | M132: =M78 -> 0
A133: Pour le compte de | J133: =J79 -> 0
A134: =A80 -> 0 | I134: =I80 -> 0 | N134: =N80 -> 0
A136: Période du | I136: =I82 -> 1/04/2019 | N136: au | O136: =O82 -> 2019-04-05 | U136: =U82 -> 0.00 | W136: =+W82 -> 0.00 | Z136: =+W136*U136 -> 0.00
B153: TVA NON APPLICABLE ART L 293 B du CGI
A156: Taux | F156: Base HT | J156: Montant TVA | S156: Total HT | Y156: =SUM(Z130:AC152) -> 0
A157: 0% | F157: =SUM(Z130:AC151) -> 0.00 € | J157: 0 | S157: Montant HT | Y157: =Y156 -> 0
S158: TVA | Y158: 0%
S159: NET A PAYER | Y159: =Y157 -> 0
A160: "Acceptant le règlement des sommes dues par chèques libellés à son nom et par carte bancaire en sa qualité de membre d'un centre de gestion agréé par l'administration fiscale"

Sheet APP4
AB1: =A1:AC51 -> 0
A4: 2, rue des Jasses
A5: 34290 Montblanc
A6: Tél : 06 43 85 73 88
A7: Email : tremplinocc.contact@gmail.com
A8: SIRET 848 179 883 00014 / APE 8559A
A9: N°déclaration d'activité: 76 34101690 34
A11: Référence O.F. OPCA:
P12: =+'RECAPITULATIF ET SUIVI'!G7 -> 0
A16: Facture
A18: Numéro | I18: Date | N18: Code client | P18: Date échéance | Q18: Mode de règlement
I19: =+'APP1'!I19:M19 -> 2019-04-01 | N19: =+'RECAPITULATIF ET SUIVI'!H7 -> 0 | P19: Réception | Q19: VIREMENT
A21: Description | U21: Qté H. | W21: P.U. HT | Z21: Montant HT
A22: =+'RECAPITULATIF ET SUIVI'!F7 -> 0
A24: Contrat Prestations | M24: =+'RECAPITULATIF ET SUIVI'!J7 -> 0
A25: Pour le compte de | J25: =+'RECAPITULATIF ET SUIVI'!E7 -> 0
A26: =+'RECAPITULATIF ET SUIVI'!B7 -> 0 | I26: =+'RECAPITULATIF ET SUIVI'!C7 -> 0 | N26: =+'RECAPITULATIF ET SUIVI'!D7 -> 0
A28: Période du | I28: ='APP1'!I28:M28 -> 1/04/2019 | N28: au | O28: ='APP1'!O28:P28 -> 2019-04-05 | W28: =+'RECAPITULATIF ET SUIVI'!L7 -> 0.00 | Z28: =+W28*U28 -> 0.00
B45: EXONERATION DE TVA ART L9204 DU CODE DU TRAVAIL
A48: Taux | F48: Base HT | J48: Montant TVA | S48: Total HT | Y48: =SUM(Z22:AC44) -> 0
A49: 0% | F49: =SUM(Z22:AC43) -> 0.00 € | J49: 0 | S49: Montant HT | Y49: =Y48 -> 0
S50: TVA | Y50: 0%
S51: NET A PAYER | Y51: =Y49 -> 0
C56: =+'RECAPITULATIF ET SUIVI'!D21 -> 0
C58: Tél : 0643 85 73 88
C61: SIRET: | F61: =+'RECAPITULATIF ET SUIVI'!E21 -> 0 | L61: APE 7010 Z
P66: =A7 -> Email : tremplinocc.contact@gmail.com
P67: =A9 -> N°déclaration d'activité: 76 34101690 34
A70: Facture
A72: Numéro | I72: Date | N72: Code client | P72: Date échéance | Q72: Mode de règlement
I73: =+I19 -> 2019-04-01 | N73: =+'APP3'!N73:O73 -> CLT-005-Toc | P73: Réception | Q73: CHEQUE/VIREMENT
A74: nom : IBAN: BIC: DOMICILIATION:
A75: Description | U75: Qté H. | W75: P.U. HT | Z75: Montant HT
A76: =A22 -> 0
A78: Contrat Prestations | M78: =M24 -> 0
A79: Pour le compte de | J79: =J25 -> 0
A80: =A26 -> 0 | I80: =I26 -> 0 | N80: =N26 -> 0
A82: Période du | I82: =I28 -> 1/04/2019 | N82: au | O82: =O28 -> 2019-04-05 | U82: =U28 -> 0.00 | W82: =+'RECAPITULATIF ET SUIVI'!L24 -> 0.00 | Z82: =+W82*U82 -> 0.00
B99: TVA NON APPLICABLE ART L 293 B du CGI
A102: Taux | F102: Base HT | J102: Montant TVA | S102: Total HT | Y102: =SUM(Z76:AC98) -> 0
A103: 0% | F103: =SUM(Z76:AC97) -> 0.00 € | J103: 0 | S103: Montant HT | Y103: =Y102 -> 0
S104: TVA | Y104: 0%
S105: NET A PAYER | Y105: =Y103 -> 0
A106: "Acceptant le règlement des sommes dues par chèques libellés à son nom et par carte bancaire en sa qualité de membre d'un centre de gestion agréé par l'administration fiscale"
C110: =+C56 -> 0
C112: Tel: 0768 99 59 46
C115: =+C61 -> SIRET: | F115: =+F61 -> 0 | M115: =+L61 -> APE 7010 Z
P118: =P66 -> Email : tremplinocc.contact@gmail.com
P119: =P67 -> N°déclaration d'activité: 76 34101690 34
A124: Facture
A126: Numéro | I126: Date | N126: Code client | P126: Date échéance | Q126: Mode de règlement
A127: =+A73 -> 0 | I127: =+I73 -> 2019-04-01 | N127: =+N73 -> CLT-005-Toc | P127: Réception | Q127: CHEQUE/VIREMENT
A128: nom IBAN: BIC: DOMICILIATION:
A129: Description | U129: Qté H. | W129: P.U. HT | Z129: Montant HT
A130: =A76 -> 0
A132: Contrat Prestations | M132: =M78 -> 0
A133: Pour le compte de | J133: =J79 -> 0
A134: =A80 -> 0 | I134: =I80 -> 0 | N134: =N80 -> 0
A136: Période du | I136: =I82 -> 1/04/2019 | N136: au | O136: =O82 -> 2019-04-05 | U136: =U82 -> 0.00 | W136: =+W82 -> 0.00 | Z136: =+W136*U136 -> 0.00
B153: TVA NON APPLICABLE ART L 293 B du CGI
A156: Taux | F156: Base HT | J156: Montant TVA | S156: Total HT | Y156: =SUM(Z130:AC152) -> 0
A157: 0% | F157: =SUM(Z130:AC151) -> 0.00 € | J157: 0 | S157: Montant HT | Y157: =Y156 -> 0
S158: TVA | Y158: 0%
S159: NET A PAYER | Y159: =Y157 -> 0
A160: "Acceptant le règlement des sommes dues par chèques libellés à son nom et par carte bancaire en sa qualité de membre d'un centre de gestion agréé par l'administration fiscale"

Sheet APP5
AB1: =A1:AC51 -> 0
A4: 2, rue des Jasses
A5: 34290 Montblanc
A6: Tél : 06 43 85 73 88
A7: Email : tremplinocc.cc@gmail.com
A8: SIRET 848 179 883 00014 / APE 8559A
A9: N°déclaration d'activité: 76 34101690 34
A11: Référence O.F. OPCA:
P12: =+'RECAPITULATIF ET SUIVI'!G8 -> 0
A16: Facture
A18: Numéro | I18: Date | N18: Code client | P18: Date échéance | Q18: Mode de règlement
I19: =+'APP1'!I19:M19 -> 2019-04-01 | N19: =+'RECAPITULATIF ET SUIVI'!H8 -> 0 | P19: Réception | Q19: VIREMENT
A21: Description | U21: Qté H. | W21: P.U. HT | Z21: Montant HT
A22: =+'RECAPITULATIF ET SUIVI'!F8 -> 0
A24: Contrat Prestations | M24: =+'RECAPITULATIF ET SUIVI'!J8 -> 0
A25: Pour le compte de | J25: =+'RECAPITULATIF ET SUIVI'!E8 -> 0
A26: =+'RECAPITULATIF ET SUIVI'!B8 -> 0 | I26: =+'RECAPITULATIF ET SUIVI'!C8 -> 0 | N26: =+'RECAPITULATIF ET SUIVI'!D8 -> 0
B27: Référence Demandeur OPCA: | K27: I-5014979
A28: Période du | I28: ='APP1'!I28:M28 -> 1/04/2019 | N28: au | O28: ='APP1'!O28:P28 -> 2019-04-05 | W28: ='RECAPITULATIF ET SUIVI'!L8 -> 0.00 | Z28: =+W28*U28 -> 0.00
B45: EXONERATION DE TVA ART L9204 DU CODE DU TRAVAIL
A48: Taux | F48: Base HT | J48: Montant TVA | S48: Total HT | Y48: =SUM(Z22:AC44) -> 0
A49: 0% | F49: =SUM(Z22:AC43) -> 0.00 € | J49: 0 | S49: Montant HT | Y49: =Y48 -> 0
S50: TVA | Y50: 0%
S51: NET A PAYER | Y51: =Y49 -> 0
C55: CASTRIEN Colin
C56: =+'RECAPITULATIF ET SUIVI'!D21 -> 0
C58: Tél : 0643 85 73 88
C60: Email : colin@castrien.com
C61: SIRET: | F61: =+'RECAPITULATIF ET SUIVI'!E21 -> 0 | L61: APE 7010 Z
P66: =A7 -> Email : tremplinocc.cc@gmail.com
P67: =A9 -> N°déclaration d'activité: 76 34101690 34
A70: Facture
A72: Numéro | I72: Date | N72: Code client | P72: Date échéance | Q72: Mode de règlement
A73: 007 | I73: =+I19 -> 2019-04-01 | N73: =+N19 -> 0 | P73: Réception | Q73: CHEQUE/VIREMENT
A74: MR CASTRIEN COLIN IBAN: FR24 2004 1010 2103 5712 3V01 840 BIC: PSSTFRPPSDR DOMICILIATION: BANQUE POSTALE- CENTRE FINANCIER 97499 SAINT DENIS CEDEX 9
A75: Description | U75: Qté H. | W75: P.U. HT | Z75: Montant HT
A76: =A22 -> 0
A78: Contrat Prestations | M78: =M24 -> 0
A79: Pour le compte de | J79: =J25 -> 0
A80: =A26 -> 0 | I80: =I26 -> 0 | N80: =N26 -> 0
A82: Période du | I82: =I28 -> 1/04/2019 | N82: au | O82: =O28 -> 2019-04-05 | U82: =U28 -> 0.00 | W82: ='RECAPITULATIF ET SUIVI'!L25 -> 0.00 | Z82: =+W82*U82 -> 0.00
B99: TVA NON APPLICABLE ART L 293 B du CGI
A102: Taux | F102: Base HT | J102: Montant TVA | S102: Total HT | Y102: =SUM(Z76:AC98) -> 0
A103: 0% | F103: =SUM(Z76:AC97) -> 0.00 € | J103: 0 | S103: Montant HT | Y103: =Y102 -> 0
S104: TVA | Y104: 0%
S105: NET A PAYER | Y105: =Y103 -> 0
A106: "Acceptant le règlement des sommes dues par chèques libellés à son nom et par carte bancaire en sa qualité de membre d'un centre de gestion agréé par l'administration fiscale"
C109: PROGICIEL CHARLES
C110: =+C56 -> 0
C112: Tel: 0768 99 59 46
C114: Email: progicielcharles@gmail.com
C115: =+C61 -> SIRET: | F115: =+F61 -> 0 | M115: =+L61 -> APE 7010 Z
P118: =P66 -> Email : tremplinocc.cc@gmail.com
P119: =P67 -> N°déclaration d'activité: 76 34101690 34
A124: Facture
A126: Numéro | I126: Date | N126: Code client | P126: Date échéance | Q126: Mode de règlement
A127: =+A73 -> 007 | I127: =+I73 -> 2019-04-01 | N127: =+N73 -> 0 | P127: Réception | Q127: CHEQUE/VIREMENT
A128: PROGICIEL CHARLES IBAN: FR24 2004 1010 2103 5712 3V01 840 BIC: PSSTFRPPSDR DOMICILIATION: BANQUE POSTALE- CENTRE FINANCIER 97499 SAINT DENIS CEDEX 9
A129: Description | U129: Qté H. | W129: P.U. HT | Z129: Montant HT
A130: =A76 -> 0
A132: Contrat Prestations | M132: =M78 -> 0
A133: Pour le compte de | J133: =J79 -> 0
A134: =A80 -> 0 | I134: =I80 -> 0 | N134: =N80 -> 0
A136: Période du | I136: =I82 -> 1/04/2019 | N136: au | O136: =O82 -> 2019-04-05 | U136: =U82 -> 0.00 | W136: =+W82 -> 0.00 | Z136: =+W136*U136 -> 0.00
B153: TVA NON APPLICABLE ART L 293 B du CGI
A156: Taux | F156: Base HT | J156: Montant TVA | S156: Total HT | Y156: =SUM(Z130:AC152) -> 0
A157: 0% | F157: =SUM(Z130:AC151) -> 0.00 € | J157: 0 | S157: Montant HT | Y157: =Y156 -> 0
S158: TVA | Y158: 0%
S159: NET A PAYER | Y159: =Y157 -> 0
A160: "Acceptant le règlement des sommes dues par chèques libellés à son nom et par carte bancaire en sa qualité de membre d'un centre de gestion agréé par l'administration fiscale"

Sheet APP6
AB1: =A1:AC51 -> 0
A4: 2, rue des Jasses
A5: 34290 Montblanc
A6: Tél : 06 43 85 73 88
A7: Email : tremplinocc.cc@gmail.com
A8: SIRET 848 179 883 00014 / APE 8559A
A9: N°déclaration d'activité: 76 34101690 34
A11: Référence O.F. OPCA:
P12: ABP PSYCHO-ERGONOMIE SASU LYON
A16: AVOIR
A18: Numéro | I18: Date | N18: Code client | P18: Date échéance | Q18: Mode de règlement
A19: FC112 | I19: =+'APP1'!I19:M19 -> 2019-04-01 | N19: =+'RECAPITULATIF ET SUIVI'!H9 -> 0 | P19: Réception | Q19: VIREMENT
A21: Description | U21: Qté H. | W21: P.U. HT | Z21: Montant HT
A22: =+'RECAPITULATIF ET SUIVI'!F9 -> 0
A24: Contrat Prestations | M24: =+'RECAPITULATIF ET SUIVI'!J9 -> 0
A25: Pour le compte de | J25: =+'RECAPITULATIF ET SUIVI'!E9 -> 0
A26: =+'RECAPITULATIF ET SUIVI'!B9 -> 0 | I26: =+'RECAPITULATIF ET SUIVI'!C9 -> 0 | N26: =+'RECAPITULATIF ET SUIVI'!D9 -> 0 | AF26: =2250/35 -> 64.28571429
A28: Période du | I28: 17/12/2018 | N28: au | O28: 2018-12-21 | U28: 35.00 | W28: =+AF26 -> 64.29 | Z28: =+W28*U28 -> 2,250.00
B45: EXONERATION DE TVA ART L9204 DU CODE DU TRAVAIL
A48: Taux | F48: Base HT | J48: Montant TVA | S48: Total HT | Y48: =SUM(Z22:AC44) -> 2,250.00 €
A49: 0% | F49: =SUM(Z22:AC43) -> 2,250.00 € | J49: 0 | S49: Montant HT | Y49: =Y48 -> 2,250.00 €
S50: TVA | Y50: 0%
S51: NET A DEDUIRE | Y51: =Y49 -> 2,250.00 €
C55: CASTRIEN Colin
C56: =+'RECAPITULATIF ET SUIVI'!D21 -> 0
C58: Tél : 0643 85 73 88
C60: Email : colin@castrien.com
C61: SIRET: | F61: =+'RECAPITULATIF ET SUIVI'!E21 -> 0 | L61: APE 7010 Z
P66: ABP PSYCHO-ERGONOMIE SASU LYON
A70: Facture
A72: Numéro | I72: Date | N72: Code client | P72: Date échéance | Q72: Mode de règlement
A73: 009 | I73: 2019-01-02 | N73: =+N19 -> 0 | P73: Réception | Q73: CHEQUE/VIREMENT
A74: MR CASTRIEN COLIN IBAN: FR24 2004 1010 2103 5712 3V01 840 BIC: PSSTFRPPSDR DOMICILIATION: BANQUE POSTALE- CENTRE FINANCIER 97499 SAINT DENIS CEDEX 9
A75: Description | U75: Qté H. | W75: P.U. HT | Z75: Montant HT
A76: =A22 -> 0
A78: Contrat Prestations | M78: =M24 -> 0
A79: Pour le compte de | J79: =J25 -> 0
A80: =A26 -> 0 | I80: =I26 -> 0 | N80: =N26 -> 0
A82: Période du | I82: =I28 -> 17/12/2018 | N82: au | O82: =O28 -> 2018-12-21 | U82: =U28 -> 35.00 | W82: 19.29 | Z82: =+W82*U82 -> 675.00
B99: TVA non applicable, article 293 B du Code général des impôts
A102: Taux | F102: Base HT | J102: Montant TVA | S102: Total HT | Y102: =SUM(Z76:AC98) -> 675.00 €
A103: 0% | F103: =SUM(Z76:AC97) -> 675.00 € | J103: 0 | S103: Montant HT | Y103: =Y102 -> 675.00 €
S104: TVA | Y104: 0%
S105: NET A PAYER | Y105: =Y103 -> 675.00 €
A106: "Acceptant le règlement des sommes dues par chèques libellés à son nom et par carte bancaire en sa qualité de membre d'un centre de gestion agréé par l'administration fiscale"
C109: PROGICIEL CHARLES
C110: =+C56 -> 0
C112: Tel: 0768 99 59 46
C114: Email: progicielcharles@gmail.com
C115: =+C61 -> SIRET: | F115: =+F61 -> 0 | M115: =+L61 -> APE 7010 Z
P118: =P66 -> ABP PSYCHO-ERGONOMIE SASU LYON
P119: =P67 -> 0
A124: Facture
A126: Numéro | I126: Date | N126: Code client | P126: Date échéance | Q126: Mode de règlement
A127: =+A73 -> 009 | I127: =+I73 -> 2019-01-02 | N127: =+N73 -> 0 | P127: Réception | Q127: CHEQUE/VIREMENT
A128: PROGICIEL CHARLES IBAN: FR24 2004 1010 2103 5712 3V01 840 BIC: PSSTFRPPSDR DOMICILIATION: BANQUE POSTALE- CENTRE FINANCIER 97499 SAINT DENIS CEDEX 9
A129: Description | U129: Qté H. | W129: P.U. HT | Z129: Montant HT
A130: =A76 -> 0
A132: Contrat Prestations | M132: =M78 -> 0
A133: Pour le compte de | J133: =J79 -> 0
A134: =A80 -> 0 | I134: =I80 -> 0 | N134: =N80 -> 0
A136: Période du | I136: =I82 -> 17/12/2018 | N136: au | O136: =O82 -> 2018-12-21 | U136: =U82 -> 35.00 | W136: =+W82 -> 19.29 | Z136: =+W136*U136 -> 675.00
B153: TVA non applicable, article 293 B du Code général des impôts
A156: Taux | F156: Base HT | J156: Montant TVA | S156: Total HT | Y156: =SUM(Z130:AC152) -> 675.00 €
A157: 0% | F157: =SUM(Z130:AC151) -> 675.00 € | J157: 0 | S157: Montant HT | Y157: =Y156 -> 675.00 €
S158: TVA | Y158: 0%
S159: NET A PAYER | Y159: =Y157 -> 675.00 €
A160: "Acceptant le règlement des sommes dues par chèques libellés à son nom et par carte bancaire en sa qualité de membre d'un centre de gestion agréé par l'administration fiscale"

Sheet APP7
AB1: =A1:AC51 -> 0
A4: 2, rue des Jasses
A5: 34290 Montblanc
A6: Tél : 06 43 85 73 88
A7: Email : tremplinocc.cc@gmail.com
A8: SIRET 848 179 883 00014 / APE 8559A
A9: N°déclaration d'activité: 76 34101690 34
A11: Référence O.F. OPCA:
P12: =+'RECAPITULATIF ET SUIVI'!G10 -> 0
A16: Facture
A18: Numéro | I18: Date | N18: Code client | P18: Date échéance | Q18: Mode de règlement
I19: =+'APP1'!I19:M19 -> 2019-04-01 | N19: =+'RECAPITULATIF ET SUIVI'!H10 -> 0 | P19: Réception | Q19: VIREMENT
A21: Description | U21: Qté H. | W21: P.U. HT | Z21: Montant HT
A22: =+'RECAPITULATIF ET SUIVI'!F10 -> 0
A24: Contrat Prestations | M24: =+'RECAPITULATIF ET SUIVI'!J10 -> 0
A25: Pour le compte de | J25: =+'RECAPITULATIF ET SUIVI'!E10 -> 0
A26: =+'RECAPITULATIF ET SUIVI'!B10 -> 0 | I26: =+'RECAPITULATIF ET SUIVI'!C10 -> 0 | N26: =+'RECAPITULATIF ET SUIVI'!D10 -> 0
A28: Période du | I28: ='APP1'!I28:M28 -> 1/04/2019 | N28: au | O28: ='APP1'!O28:P28 -> 2019-04-05 | W28: =+'RECAPITULATIF ET SUIVI'!L7 -> 0.00 | Z28: =+W28*U28 -> 0.00
B45: EXONERATION DE TVA ART L9204 DU CODE DU TRAVAIL
A48: Taux | F48: Base HT | J48: Montant TVA | S48: Total HT | Y48: =SUM(Z22:AC44) -> 0
A49: 0% | F49: =SUM(Z22:AC43) -> 0.00 € | J49: 0 | S49: Montant HT | Y49: =Y48 -> 0
S50: TVA | Y50: 0%
S51: NET A PAYER | Y51: =Y49 -> 0
C55: CASTRIEN Colin
C56: =+'RECAPITULATIF ET SUIVI'!D21 -> 0
C58: Tél : 0643 85 73 88
C60: Email : colin@castrien.com
C61: SIRET: | F61: =+'RECAPITULATIF ET SUIVI'!E21 -> 0 | L61: APE 7010 Z
P66: =A7 -> Email : tremplinocc.cc@gmail.com
P67: =A9 -> N°déclaration d'activité: 76 34101690 34
A70: Facture
A72: Numéro | I72: Date | N72: Code client | P72: Date échéance | Q72: Mode de règlement
I73: =+I19 -> 2019-04-01 | N73: =+N19 -> 0 | P73: Réception | Q73: CHEQUE/VIREMENT
A74: MR CASTRIEN COLIN IBAN: FR24 2004 1010 2103 5712 3V01 840 BIC: PSSTFRPPSDR DOMICILIATION: BANQUE POSTALE- CENTRE FINANCIER 97499 SAINT DENIS CEDEX 9
A75: Description | U75: Qté H. | W75: P.U. HT | Z75: Montant HT
A76: =A22 -> 0
A78: Contrat Prestations | M78: =M24 -> 0
A79: Pour le compte de | J79: =J25 -> 0
A80: =A26 -> 0 | I80: =I26 -> 0 | N80: =N26 -> 0
A82: Période du | I82: =I28 -> 1/04/2019 | N82: au | O82: =O28 -> 2019-04-05 | U82: =U28 -> 0.00 | W82: ='RECAPITULATIF ET SUIVI'!L21 -> 20.00 | Z82: =+W82*U82 -> 0.00
B99: TVA non applicable, article 293 B du Code général des impôts
A102: Taux | F102: Base HT | J102: Montant TVA | S102: Total HT | Y102: =SUM(Z76:AC98) -> 0
A103: 0% | F103: =SUM(Z76:AC97) -> 0.00 € | J103: 0 | S103: Montant HT | Y103: =Y102 -> 0
S104: TVA | Y104: 0%
S105: NET A PAYER | Y105: =Y103 -> 0
A106: "Acceptant le règlement des sommes dues par chèques libellés à son nom et par carte bancaire en sa qualité de membre d'un centre de gestion agréé par l'administration fiscale"
C109: PROGICIEL CHARLES
C110: =+C56 -> 0
C112: Tel: 0768 99 59 46
C114: Email: progicielcharles@gmail.com
C115: =+C61 -> SIRET: | F115: =+F61 -> 0 | M115: =+L61 -> APE 7010 Z
P118: =P66 -> Email : tremplinocc.cc@gmail.com
P119: =P67 -> N°déclaration d'activité: 76 34101690 34
A124: Facture
A126: Numéro | I126: Date | N126: Code client | P126: Date échéance | Q126: Mode de règlement
A127: =+A73 -> 0 | I127: =+I73 -> 2019-04-01 | N127: =+N73 -> 0 | P127: Réception | Q127: CHEQUE/VIREMENT
A128: PROGICIEL CHARLES IBAN: FR24 2004 1010 2103 5712 3V01 840 BIC: PSSTFRPPSDR DOMICILIATION: BANQUE POSTALE- CENTRE FINANCIER 97499 SAINT DENIS CEDEX 9
A129: Description | U129: Qté H. | W129: P.U. HT | Z129: Montant HT
A130: =A76 -> 0
A132: Contrat Prestations | M132: =M78 -> 0
A133: Pour le compte de | J133: =J79 -> 0
A134: =A80 -> 0 | I134: =I80 -> 0 | N134: =N80 -> 0
A136: Période du | I136: =I82 -> 1/04/2019 | N136: au | O136: =O82 -> 2019-04-05 | U136: =U82 -> 0.00 | W136: =+W82 -> 20.00 | Z136: =+W136*U136 -> 0.00
B153: TVA non applicable, article 293 B du Code général des impôts
A156: Taux | F156: Base HT | J156: Montant TVA | S156: Total HT | Y156: =SUM(Z130:AC152) -> 0
A157: 0% | F157: =SUM(Z130:AC151) -> 0.00 € | J157: 0 | S157: Montant HT | Y157: =Y156 -> 0
S158: TVA | Y158: 0%
S159: NET A PAYER | Y159: =Y157 -> 0
A160: "Acceptant le règlement des sommes dues par chèques libellés à son nom et par carte bancaire en sa qualité de membre d'un centre de gestion agréé par l'administration fiscale"

Sheet APP8
AB1: =A1:AC51 -> 0
A4: 2, rue des Jasses
A5: 34290 Montblanc
A6: Tél : 06 43 85 73 88
A7: Email : tremplinocc.cc@gmail.com
A8: SIRET 848 179 883 00014 / APE 8559A
A9: N°déclaration d'activité: 76 34101690 34
A11: Référence O.F. OPCA:
P12: =+'RECAPITULATIF ET SUIVI'!G11 -> 0
A16: Facture
A18: Numéro | I18: Date | N18: Code client | P18: Date échéance | Q18: Mode de règlement
I19: =+'APP1'!I19:M19 -> 2019-04-01 | N19: =+'RECAPITULATIF ET SUIVI'!H11 -> 0 | P19: Réception | Q19: VIREMENT
A21: Description | U21: Qté H. | W21: P.U. HT | Z21: Montant HT
A22: =+'RECAPITULATIF ET SUIVI'!F11 -> 0
A24: Contrat Prestations | M24: =+'RECAPITULATIF ET SUIVI'!J11 -> 0
A25: Pour le compte de | J25: =+'RECAPITULATIF ET SUIVI'!E11 -> 0
A26: =+'RECAPITULATIF ET SUIVI'!B11 -> 0 | I26: =+'RECAPITULATIF ET SUIVI'!C11 -> 0 | N26: =+'RECAPITULATIF ET SUIVI'!D11 -> 0
A28: Période du | I28: ='APP1'!I28:M28 -> 1/04/2019 | N28: au | O28: ='APP1'!O28:P28 -> 2019-04-05 | W28: =+'RECAPITULATIF ET SUIVI'!L7 -> 0.00 | Z28: =+W28*U28 -> 0.00
B45: EXONERATION DE TVA ART L9204 DU CODE DU TRAVAIL
A48: Taux | F48: Base HT | J48: Montant TVA | S48: Total HT | Y48: =SUM(Z22:AC44) -> 0
A49: 0% | F49: =SUM(Z22:AC43) -> 0.00 € | J49: 0 | S49: Montant HT | Y49: =Y48 -> 0
S50: TVA | Y50: 0%
S51: NET A PAYER | Y51: =Y49 -> 0
C55: CASTRIEN Colin
C56: =+'RECAPITULATIF ET SUIVI'!D21 -> 0
C58: Tél : 0643 85 73 88
C60: Email : colin@castrien.com
C61: SIRET: | F61: =+'RECAPITULATIF ET SUIVI'!E21 -> 0 | L61: APE 7010 Z
P66: =A7 -> Email : tremplinocc.cc@gmail.com
P67: =A9 -> N°déclaration d'activité: 76 34101690 34
A70: Facture
A72: Numéro | I72: Date | N72: Code client | P72: Date échéance | Q72: Mode de règlement
I73: =+I19 -> 2019-04-01 | N73: =+N19 -> 0 | P73: Réception | Q73: CHEQUE/VIREMENT
A74: MR CASTRIEN COLIN IBAN: FR24 2004 1010 2103 5712 3V01 840 BIC: PSSTFRPPSDR DOMICILIATION: BANQUE POSTALE- CENTRE FINANCIER 97499 SAINT DENIS CEDEX 9
A75: Description | U75: Qté H. | W75: P.U. HT | Z75: Montant HT
A76: =A22 -> 0
A78: Contrat Prestations | M78: =M24 -> 0
A79: Pour le compte de | J79: =J25 -> 0
A80: =A26 -> 0 | I80: =I26 -> 0 | N80: =N26 -> 0
A82: Période du | I82: =I28 -> 1/04/2019 | N82: au | O82: =O28 -> 2019-04-05 | U82: =U28 -> 0.00 | W82: ='RECAPITULATIF ET SUIVI'!L21 -> 20.00 | Z82: =+W82*U82 -> 0.00
B99: TVA non applicable, article 293 B du Code général des impôts
A102: Taux | F102: Base HT | J102: Montant TVA | S102: Total HT | Y102: =SUM(Z76:AC98) -> 0
A103: 0% | F103: =SUM(Z76:AC97) -> 0.00 € | J103: 0 | S103: Montant HT | Y103: =Y102 -> 0
S104: TVA | Y104: 0%
S105: NET A PAYER | Y105: =Y103 -> 0
A106: "Acceptant le règlement des sommes dues par chèques libellés à son nom et par carte bancaire en sa qualité de membre d'un centre de gestion agréé par l'administration fiscale"
C109: PROGICIEL CHARLES
C110: =+C56 -> 0
C112: Tel: 0768 99 59 46
C114: Email: progicielcharles@gmail.com
C115: =+C61 -> SIRET: | F115: =+F61 -> 0 | M115: =+L61 -> APE 7010 Z
P118: =P66 -> Email : tremplinocc.cc@gmail.com
P119: =P67 -> N°déclaration d'activité: 76 34101690 34
A124: Facture
A126: Numéro | I126: Date | N126: Code client | P126: Date échéance | Q126: Mode de règlement
A127: =+A73 -> 0 | I127: =+I73 -> 2019-04-01 | N127: =+N73 -> 0 | P127: Réception | Q127: CHEQUE/VIREMENT
A128: PROGICIEL CHARLES IBAN: FR24 2004 1010 2103 5712 3V01 840 BIC: PSSTFRPPSDR DOMICILIATION: BANQUE POSTALE- CENTRE FINANCIER 97499 SAINT DENIS CEDEX 9
A129: Description | U129: Qté H. | W129: P.U. HT | Z129: Montant HT
A130: =A76 -> 0
A132: Contrat Prestations | M132: =M78 -> 0
A133: Pour le compte de | J133: =J79 -> 0
A134: =A80 -> 0 | I134: =I80 -> 0 | N134: =N80 -> 0
A136: Période du | I136: =I82 -> 1/04/2019 | N136: au | O136: =O82 -> 2019-04-05 | U136: =U82 -> 0.00 | W136: =+W82 -> 20.00 | Z136: =+W136*U136 -> 0.00
B153: TVA non applicable, article 293 B du Code général des impôts
A156: Taux | F156: Base HT | J156: Montant TVA | S156: Total HT | Y156: =SUM(Z130:AC152) -> 0
A157: 0% | F157: =SUM(Z130:AC151) -> 0.00 € | J157: 0 | S157: Montant HT | Y157: =Y156 -> 0
S158: TVA | Y158: 0%
S159: NET A PAYER | Y159: =Y157 -> 0
A160: "Acceptant le règlement des sommes dues par chèques libellés à son nom et par carte bancaire en sa qualité de membre d'un centre de gestion agréé par l'administration fiscale"

Sheet APP9
AB1: =A1:AC51 -> 0
A4: 2, rue des Jasses
A5: 34290 Montblanc
A6: Tél : 06 43 85 73 88
A7: Email : tremplinocc.cc@gmail.com
A8: SIRET 848 179 883 00014 / APE 8559A
A9: N°déclaration d'activité: 76 34101690 34
A11: Référence O.F. OPCA:
P12: =+'RECAPITULATIF ET SUIVI'!G12 -> 0
A16: Facture
A18: Numéro | I18: Date | N18: Code client | P18: Date échéance | Q18: Mode de règlement
I19: =+'APP1'!I19:M19 -> 2019-04-01 | N19: =+'RECAPITULATIF ET SUIVI'!H12 -> 0 | P19: Réception | Q19: VIREMENT
A21: Description | U21: Qté H. | W21: P.U. HT | Z21: Montant HT
A22: =+'RECAPITULATIF ET SUIVI'!F12 -> 0
A24: Contrat Prestations | M24: =+'RECAPITULATIF ET SUIVI'!J12 -> 0
A25: Pour le compte de | J25: =+'RECAPITULATIF ET SUIVI'!E12 -> 0
A26: =+'RECAPITULATIF ET SUIVI'!B12 -> 0 | I26: =+'RECAPITULATIF ET SUIVI'!C12 -> 0 | N26: =+'RECAPITULATIF ET SUIVI'!D12 -> 0
A28: Période du | I28: ='APP1'!I28:M28 -> 1/04/2019 | N28: au | O28: ='APP1'!O28:P28 -> 2019-04-05 | W28: =+'RECAPITULATIF ET SUIVI'!L7 -> 0.00 | Z28: =+W28*U28 -> 0.00
B45: EXONERATION DE TVA ART L9204 DU CODE DU TRAVAIL
A48: Taux | F48: Base HT | J48: Montant TVA | S48: Total HT | Y48: =SUM(Z22:AC44) -> 0
A49: 0% | F49: =SUM(Z22:AC43) -> 0.00 € | J49: 0 | S49: Montant HT | Y49: =Y48 -> 0
S50: TVA | Y50: 0%
S51: NET A PAYER | Y51: =Y49 -> 0
C55: CASTRIEN Colin
C56: =+'RECAPITULATIF ET SUIVI'!D21 -> 0
C58: Tél : 0643 85 73 88
C60: Email : colin@castrien.com
C61: SIRET: | F61: =+'RECAPITULATIF ET SUIVI'!E21 -> 0 | L61: APE 7010 Z
P66: =A7 -> Email : tremplinocc.cc@gmail.com
P67: =A9 -> N°déclaration d'activité: 76 34101690 34
A70: Facture
A72: Numéro | I72: Date | N72: Code client | P72: Date échéance | Q72: Mode de règlement
I73: =+I19 -> 2019-04-01 | N73: =+N19 -> 0 | P73: Réception | Q73: CHEQUE/VIREMENT
A74: MR CASTRIEN COLIN IBAN: FR24 2004 1010 2103 5712 3V01 840 BIC: PSSTFRPPSDR DOMICILIATION: BANQUE POSTALE- CENTRE FINANCIER 97499 SAINT DENIS CEDEX 9
A75: Description | U75: Qté H. | W75: P.U. HT | Z75: Montant HT
A76: =A22 -> 0
A78: Contrat Prestations | M78: =M24 -> 0
A79: Pour le compte de | J79: =J25 -> 0
A80: =A26 -> 0 | I80: =I26 -> 0 | N80: =N26 -> 0
A82: Période du | I82: =I28 -> 1/04/2019 | N82: au | O82: =O28 -> 2019-04-05 | U82: =U28 -> 0.00 | W82: ='RECAPITULATIF ET SUIVI'!L21 -> 20.00 | Z82: =+W82*U82 -> 0.00
B99: TVA non applicable, article 293 B du Code général des impôts
A102: Taux | F102: Base HT | J102: Montant TVA | S102: Total HT | Y102: =SUM(Z76:AC98) -> 0
A103: 0% | F103: =SUM(Z76:AC97) -> 0.00 € | J103: 0 | S103: Montant HT | Y103: =Y102 -> 0
S104: TVA | Y104: 0%
S105: NET A PAYER | Y105: =Y103 -> 0
A106: "Acceptant le règlement des sommes dues par chèques libellés à son nom et par carte bancaire en sa qualité de membre d'un centre de gestion agréé par l'administration fiscale"
C109: PROGICIEL CHARLES
C110: =+C56 -> 0
C112: Tel: 0768 99 59 46
C114: Email: progicielcharles@gmail.com
C115: =+C61 -> SIRET: | F115: =+F61 -> 0 | M115: =+L61 -> APE 7010 Z
P118: =P66 -> Email : tremplinocc.cc@gmail.com
P119: =P67 -> N°déclaration d'activité: 76 34101690 34
A124: Facture
A126: Numéro | I126: Date | N126: Code client | P126: Date échéance | Q126: Mode de règlement
A127: =+A73 -> 0 | I127: =+I73 -> 2019-04-01 | N127: =+N73 -> 0 | P127: Réception | Q127: CHEQUE/VIREMENT
A128: PROGICIEL CHARLES IBAN: FR24 2004 1010 2103 5712 3V01 840 BIC: PSSTFRPPSDR DOMICILIATION: BANQUE POSTALE- CENTRE FINANCIER 97499 SAINT DENIS CEDEX 9
A129: Description | U129: Qté H. | W129: P.U. HT | Z129: Montant HT
A130: =A76 -> 0
A132: Contrat Prestations | M132: =M78 -> 0
A133: Pour le compte de | J133: =J79 -> 0
A134: =A80 -> 0 | I134: =I80 -> 0 | N134: =N80 -> 0
A136: Période du | I136: =I82 -> 1/04/2019 | N136: au | O136: =O82 -> 2019-04-05 | U136: =U82 -> 0.00 | W136: =+W82 -> 20.00 | Z136: =+W136*U136 -> 0.00
B153: TVA non applicable, article 293 B du Code général des impôts
A156: Taux | F156: Base HT | J156: Montant TVA | S156: Total HT | Y156: =SUM(Z130:AC152) -> 0
A157: 0% | F157: =SUM(Z130:AC151) -> 0.00 € | J157: 0 | S157: Montant HT | Y157: =Y156 -> 0
S158: TVA | Y158: 0%
S159: NET A PAYER | Y159: =Y157 -> 0
A160: "Acceptant le règlement des sommes dues par chèques libellés à son nom et par carte bancaire en sa qualité de membre d'un centre de gestion agréé par l'administration fiscale"

Sheet APP10
AB1: =A1:AC51 -> 0
A4: 2, rue des Jasses
A5: 34290 Montblanc
A6: Tél : 06 43 85 73 88
A7: Email : tremplinocc.cc@gmail.com
A8: SIRET 848 179 883 00014 / APE 8559A
A9: N°déclaration d'activité: 76 34101690 34
A11: Référence O.F. OPCA:
P12: =+'RECAPITULATIF ET SUIVI'!G13 -> 0
A16: Facture
A18: Numéro | I18: Date | N18: Code client | P18: Date échéance | Q18: Mode de règlement
I19: =+'APP1'!I19:M19 -> 2019-04-01 | N19: =+'RECAPITULATIF ET SUIVI'!H13 -> 0 | P19: Réception | Q19: VIREMENT
A21: Description | U21: Qté H. | W21: P.U. HT | Z21: Montant HT
A22: =+'RECAPITULATIF ET SUIVI'!F13 -> 0
A24: Contrat Prestations | M24: =+'RECAPITULATIF ET SUIVI'!J13 -> 0
A25: Pour le compte de | J25: =+'RECAPITULATIF ET SUIVI'!E13 -> 0
A26: =+'RECAPITULATIF ET SUIVI'!B13 -> 0 | I26: =+'RECAPITULATIF ET SUIVI'!C13 -> 0 | N26: =+'RECAPITULATIF ET SUIVI'!D13 -> 0
A28: Période du | I28: ='APP1'!I28:M28 -> 1/04/2019 | N28: au | O28: ='APP1'!O28:P28 -> 2019-04-05 | W28: =+'RECAPITULATIF ET SUIVI'!L7 -> 0.00 | Z28: =+W28*U28 -> 0.00
B45: EXONERATION DE TVA ART L9204 DU CODE DU TRAVAIL
A48: Taux | F48: Base HT | J48: Montant TVA | S48: Total HT | Y48: =SUM(Z22:AC44) -> 0
A49: 0% | F49: =SUM(Z22:AC43) -> 0.00 € | J49: 0 | S49: Montant HT | Y49: =Y48 -> 0
S50: TVA | Y50: 0%
S51: NET A PAYER | Y51: =Y49 -> 0
C55: CASTRIEN Colin
C56: =+'RECAPITULATIF ET SUIVI'!D21 -> 0
C58: Tél : 0643 85 73 88
C60: Email : colin@castrien.com
C61: SIRET: | F61: =+'RECAPITULATIF ET SUIVI'!E21 -> 0 | L61: APE 7010 Z
P66: =A7 -> Email : tremplinocc.cc@gmail.com
P67: =A9 -> N°déclaration d'activité: 76 34101690 34
A70: Facture
A72: Numéro | I72: Date | N72: Code client | P72: Date échéance | Q72: Mode de règlement
I73: =+I19 -> 2019-04-01 | N73: =+N19 -> 0 | P73: Réception | Q73: CHEQUE/VIREMENT
A74: MR CASTRIEN COLIN IBAN: FR24 2004 1010 2103 5712 3V01 840 BIC: PSSTFRPPSDR DOMICILIATION: BANQUE POSTALE- CENTRE FINANCIER 97499 SAINT DENIS CEDEX 9
A75: Description | U75: Qté H. | W75: P.U. HT | Z75: Montant HT
A76: =A22 -> 0
A78: Contrat Prestations | M78: =M24 -> 0
A79: Pour le compte de | J79: =J25 -> 0
A80: =A26 -> 0 | I80: =I26 -> 0 | N80: =N26 -> 0
A82: Période du | I82: =I28 -> 1/04/2019 | N82: au | O82: =O28 -> 2019-04-05 | U82: =U28 -> 0.00 | W82: ='RECAPITULATIF ET SUIVI'!L21 -> 20.00 | Z82: =+W82*U82 -> 0.00
B99: TVA non applicable, article 293 B du Code général des impôts
A102: Taux | F102: Base HT | J102: Montant TVA | S102: Total HT | Y102: =SUM(Z76:AC98) -> 0
A103: 0% | F103: =SUM(Z76:AC97) -> 0.00 € | J103: 0 | S103: Montant HT | Y103: =Y102 -> 0
S104: TVA | Y104: 0%
S105: NET A PAYER | Y105: =Y103 -> 0
A106: "Acceptant le règlement des sommes dues par chèques libellés à son nom et par carte bancaire en sa qualité de membre d'un centre de gestion agréé par l'administration fiscale"
C109: PROGICIEL CHARLES
C110: =+C56 -> 0
C112: Tel: 0768 99 59 46
C114: Email: progicielcharles@gmail.com
C115: =+C61 -> SIRET: | F115: =+F61 -> 0 | M115: =+L61 -> APE 7010 Z
P118: =P66 -> Email : tremplinocc.cc@gmail.com
P119: =P67 -> N°déclaration d'activité: 76 34101690 34
A124: Facture
A126: Numéro | I126: Date | N126: Code client | P126: Date échéance | Q126: Mode de règlement
A127: =+A73 -> 0 | I127: =+I73 -> 2019-04-01 | N127: =+N73 -> 0 | P127: Réception | Q127: CHEQUE/VIREMENT
A128: PROGICIEL CHARLES IBAN: FR24 2004 1010 2103 5712 3V01 840 BIC: PSSTFRPPSDR DOMICILIATION: BANQUE POSTALE- CENTRE FINANCIER 97499 SAINT DENIS CEDEX 9
A129: Description | U129: Qté H. | W129: P.U. HT | Z129: Montant HT
A130: =A76 -> 0
A132: Contrat Prestations | M132: =M78 -> 0
A133: Pour le compte de | J133: =J79 -> 0
A134: =A80 -> 0 | I134: =I80 -> 0 | N134: =N80 -> 0
A136: Période du | I136: =I82 -> 1/04/2019 | N136: au | O136: =O82 -> 2019-04-05 | U136: =U82 -> 0.00 | W136: =+W82 -> 20.00 | Z136: =+W136*U136 -> 0.00
B153: TVA non applicable, article 293 B du Code général des impôts
A156: Taux | F156: Base HT | J156: Montant TVA | S156: Total HT | Y156: =SUM(Z130:AC152) -> 0
A157: 0% | F157: =SUM(Z130:AC151) -> 0.00 € | J157: 0 | S157: Montant HT | Y157: =Y156 -> 0
S158: TVA | Y158: 0%
S159: NET A PAYER | Y159: =Y157 -> 0
A160: "Acceptant le règlement des sommes dues par chèques libellés à son nom et par carte bancaire en sa qualité de membre d'un centre de gestion agréé par l'administration fiscale"
